Workbook

Sheet README
A1: Balance Selection
A3: Balance selection is a decisive step during the definition of an experiment, be it in the wind tunnel or any other test facility. An inappropriate balance selection either causes overload conditions possibly resulting in damages to the precious balance or the absolute measurement precision is unnecessarily reduced as the balance range is not utilized optimally.
A5: A balance is 'suitable' if the following load criteria are fulfilled:
A11: X, Y, Z, L, M, N: maximally expected measurement loads defined by the application
A12: X’, Y’, Z’, L’, M’, N’: limit loads defined by the balance.
A14: To get best measurement accuracy above load criteria should be close to one but must never exceed one.
A18: Guidance
A20: Input To the upper left 'Input for Required Loads' the total of the expected/measured loads have to be defined (total of aerodynamic loads plus model weight).
A22: Note: - Use absolute values only. - For use as an external balance take into account the additional moment due to the transformation from model to balance reference frame.
A25: Output An 'Optimal Balance' will automatically be selected by calculating the three load criteria and displaying them in the diagrams to the right. For an optimal balance, the criteria show up in green color and the loads remain within their 'load triangle' in the diagram to the lower right.
A28: Option In addition you can select any other balance to the lower left 'Select Balance'. According to that selection and your input of expected/measured loads from above the results will be calculated.
A32: Nomenclature
A34: X or Fx … axial force
A35: Y or Fy … side force
A36: Z or Fz … normal force
A37: L or Mx … positive rolling moment around positive x-axis
A38: M or My … positive pitching moment around positive y-axis
A39: N or Mz … positive yawing moment around positive z-axis
A45: Rules of Use
A47: - This tool was created by RUAG for the selection of its block-type balances. It's free of use but RUAG denies any claims resulting from an inappropriate balance selection due to this tool. - RUAG tries to keep this tool free of errors but doesn't accept any guarantee. Notifications on bugs and comments about this tool are welcome (aerodynamics@ruag.com). - All rights are exclusively owned by RUAG Schweiz AG. The tool may not be changed without the explicit and written approval of RUAG Schweiz AG.

Sheet Balance Selection
A1: Input for | C1: Optimal Balance | H1: limit | I1: komplement
A2: Required Loads | G2: X | H2: =IF(B5/D19>1,1,B5/D19) -> 0.5 | I2: =IF(1-H2<0,0,1-H2) -> 0.5
B3: max loads | C3: =INDEX(Rechg!$C$1:$AP$1,1,Rechg!$B$13) -> Balance 188 | G3: Y | H3: 0.07272727273 | I3: 0.9272727273
B4: [N/Nm] | C4: =INDEX(Rechg!C2:AP2,1,Rechg!$B$13) -> design loads [N/Nm] | D4: =INDEX(Rechg!D2:AP2,1,Rechg!$B$13) -> limit loads [N/Nm] | G4: Z | H4: 0.1052631579 | I4: 0.8947368421
A5: X | B5: 500 | C5: =INDEX(Rechg!C3:AP3,1,Rechg!$B$13) -> 900 | D5: =INDEX(Rechg!D3:AP3,1,Rechg!$B$13) -> 900 | G5: L | H5: 0.2363636364 | I5: 0.7636363636
A6: Y | B6: 400 | C6: =INDEX(Rechg!C4:AP4,1,Rechg!$B$13) -> 1500 | D6: =INDEX(Rechg!D4:AP4,1,Rechg!$B$13) -> 5000 | G6: M | H6: 0.1315789474 | I6: 0.8684210526
A7: Z | B7: 2000 | C7: =INDEX(Rechg!C5:AP5,1,Rechg!$B$13) -> 4000 | D7: =INDEX(Rechg!D5:AP5,1,Rechg!$B$13) -> 15000 | G7: N | H7: 0.3896103896 | I7: 0.6103896104
A8: L | B8: 130 | C8: =INDEX(Rechg!C6:AP6,1,Rechg!$B$13) -> 300 | D8: =INDEX(Rechg!D6:AP6,1,Rechg!$B$13) -> 600
A9: M | B9: 200 | C9: =INDEX(Rechg!C7:AP7,1,Rechg!$B$13) -> 400 | D9: =INDEX(Rechg!D7:AP7,1,Rechg!$B$13) -> 1700
A10: N | B10: 150 | C10: =INDEX(Rechg!C8:AP8,1,Rechg!$B$13) -> 350 | D10: =INDEX(Rechg!D8:AP8,1,Rechg!$B$13) -> 500
C11: =INDEX(Rechg!C9:AP9,1,Rechg!$B$13) -> X/X' | D11: =INDEX(Rechg!D9:AP9,1,Rechg!$B$13) -> 0.5555555556
C12: =INDEX(Rechg!C10:AP10,1,Rechg!$B$13) -> Y/Y'+N/N' | D12: =INDEX(Rechg!D10:AP10,1,Rechg!$B$13) -> 0.38
C13: =INDEX(Rechg!C11:AP11,1,Rechg!$B$13) -> Z/Z'+L/L'+M/M' | D13: =INDEX(Rechg!D11:AP11,1,Rechg!$B$13) -> 0.4676470588
A15: Select Balance | C15: Selected Balance
E16: =Rechg!D$12 -> 266.3865546
B17: Balance 194 | C17: =INDEX(Rechg!C1:AP11,1,Rechg!$C$14) -> Balance 796 | E17: =E16 -> 266.3865546
C18: =INDEX(Rechg!C2:AP12,1,Rechg!$C$14) -> design loads [N/Nm] | D18: =INDEX(Rechg!D2:AP12,1,Rechg!$C$14) -> limit loads [N/Nm] | E18: =Rechg!F$12 -> 34.3452381
B19: Balance 199 | C19: =INDEX(Rechg!C3:AP3,1,Rechg!$C$14) -> 1000 | D19: =INDEX(Rechg!D3:AP3,1,Rechg!$C$14) -> 1000 | E19: =E18 -> 34.3452381
C20: =INDEX(Rechg!C4:AP4,1,Rechg!$C$14) -> 800 | D20: =INDEX(Rechg!D4:AP4,1,Rechg!$C$14) -> 5500 | E20: =Rechg!H$12 -> 18.63636364
B21: Balance 187 | C21: =INDEX(Rechg!C5:AP5,1,Rechg!$C$14) -> 3500 | D21: =INDEX(Rechg!D5:AP5,1,Rechg!$C$14) -> 19000 | E21: =E20 -> 18.63636364
C22: =INDEX(Rechg!C6:AP6,1,Rechg!$C$14) -> 350 | D22: =INDEX(Rechg!D6:AP6,1,Rechg!$C$14) -> 550 | E22: =Rechg!J$12 -> 3.846153846
B23: Balance 197 | C23: =INDEX(Rechg!C7:AP7,1,Rechg!$C$14) -> 350 | D23: =INDEX(Rechg!D7:AP7,1,Rechg!$C$14) -> 1520 | E23: =E22 -> 3.846153846
C24: =INDEX(Rechg!C8:AP8,1,Rechg!$C$14) -> 350 | D24: =INDEX(Rechg!D8:AP8,1,Rechg!$C$14) -> 385 | E24: =Rechg!L$12 -> 4.497747748
B25: Balance 198 | C25: =INDEX(Rechg!C9:AP9,1,Rechg!$C$14) -> X/X' | D25: =INDEX(Rechg!D9:AP9,1,Rechg!$C$14) -> 0.5 | E25: =E24 -> 4.497747748 | G25: =1-D25 -> 0.5 | H25: =IF(D25>1,1,D25) -> 0.5 | I25: =IF(1-D25<0,0,1-D25) -> 0.5
C26: =INDEX(Rechg!C10:AP10,1,Rechg!$C$14) -> Y/Y'+N/N' | D26: =INDEX(Rechg!D10:AP10,1,Rechg!$C$14) -> 0.4623376623 | E26: =Rechg!N$12 -> 1.455555556 | G26: =1-D26 -> 0.5376623377 | H26: =IF(D26>1,1,D26) -> 0.4623376623 | I26: =IF(1-D26<0,0,1-D26) -> 0.5376623377
B27: Balance 196 | C27: =INDEX(Rechg!C11:AP11,1,Rechg!$C$14) -> Z/Z'+L/L'+M/M' | D27: =INDEX(Rechg!D11:AP11,1,Rechg!$C$14) -> 0.4732057416 | E27: =E26 -> 1.455555556 | G27: =1-D27 -> 0.5267942584 | H27: =IF(D27>1,1,D27) -> 0.4732057416 | I27: =IF(1-D27<0,0,1-D27) -> 0.5267942584
E28: =Rechg!P$12 -> 0.5555555556
B29: Balance 188 | C29: Dimensions | E29: =E28 -> 0.5555555556
C30: Length [mm] | D30: =INDEX(Rechg!D17:AP17,1,Rechg!$C$14) -> 180 | E30: =Rechg!R$12 -> 0.3333333333
B31: Balance 192 | C31: Width [mm] | D31: =INDEX(Rechg!D18:AP18,1,Rechg!$C$14) -> 80 | E31: =E30 -> 0.3333333333
C32: Height [mm] | D32: =INDEX(Rechg!D19:AP19,1,Rechg!$C$14) -> 60 | E32: =Rechg!T$12 -> 0.1
B33: Balance 167 | E33: =E32 -> 0.1
C34: Weight [kg] | D34: =INDEX(Rechg!D21:AP21,1,Rechg!$C$14) -> 5 | E34: =Rechg!V$12 -> 0.08333333333
B35: Balance 179 | E35: =E34 -> 0.08333333333
C36: Deformations | E36: =Rechg!X$12 -> 0.04126760563
B37: Balance 602 | C37: δθ/δM [deg/Nm] | D37: =INDEX(Rechg!D24:AP24,1,Rechg!$C$14) -> 8.0*10-5 | E37: =E36 -> 0.04126760563
C38: δψ/δN [deg/Nm] | D38: =INDEX(Rechg!D25:AP25,1,Rechg!$C$14) -> 2.0*10-4 | E38: =Rechg!Z$12 -> 0.04
B39: Balance 300 | C39: δφ/δL [deg/Nm] | D39: =INDEX(Rechg!D26:AP26,1,Rechg!$C$14) -> 4.0*10-4 | E39: =E38 -> 0.04
E40: =Rechg!AB$12 -> 0.06849315068
B41: Balance 191 | E41: =E40 -> 0.06849315068
E42: =Rechg!AD$12 -> 61.4171123
B43: Balance 351 | E43: =E42 -> 61.4171123
E44: =Rechg!AF$12 -> 1.015686275
B45: Balance 798 | E45: =E44 -> 1.015686275
E46: =Rechg!AH$12 -> 0.5
A47: x | B47: Balance 796 | E47: =E46 -> 0.5
E48: =Rechg!AJ$12 -> 0.2766666667
B49: Balance 788 | E49: =E48 -> 0.2766666667
E50: =Rechg!AL$12 -> 0.3333333333
B51: Balance 776 | E51: =E50 -> 0.3333333333
B52: Balance 777 | E52: =Rechg!AN$12 -> 0.1666666667
B53: Balance 777 | E53: =E52 -> 0.1666666667
E54: =Rechg!AP$12 -> 0.05867965368
B55: Balance 767 | E55: =E54 -> 0.05867965368
A57: Explanations
A59: limit loads | C59: only single forces or moments
A60: X', Y' .. N' | C60: acting on the balance
A62: design loads | C62: combinations of forces/moments
A63: X, Y .. N | C63: acting simultaneously on the balance
A65: deformations | C65: typical values from several balances

Sheet Grafiken (hidden)
B1: automatische Wahl | C1: requirement | D1: design | E1: limit | G1: Fy | H1: Mz | J1: My | K1: Fz | L1: Mx
B2: ='Balance Selection'!C17 -> Balance 796 | C2: ='Balance Selection'!B5 -> 500 | D2: ='Balance Selection'!C19 -> 1000 | E2: ='Balance Selection'!D19 -> 1000 | F2: Fx | G2: =E3 -> 5500 | H2: 0 | J2: =E6 -> 1520 | K2: 0 | L2: 0
C3: ='Balance Selection'!B6 -> 400 | D3: ='Balance Selection'!C20 -> 800 | E3: ='Balance Selection'!D20 -> 5500 | F3: Fy | G3: 0 | H3: =E7 -> 385 | J3: 0 | K3: =E4 -> 19000
C4: ='Balance Selection'!B7 -> 2000 | D4: ='Balance Selection'!C21 -> 3500 | E4: ='Balance Selection'!D21 -> 19000 | F4: Fz | G4: 0 | H4: 0 | J4: 0 | K4: 0
C5: ='Balance Selection'!B8 -> 130 | D5: ='Balance Selection'!C22 -> 350 | E5: ='Balance Selection'!D22 -> 550 | F5: Mx | G5: =G2 -> 5500 | H5: =H2 -> 0 | J5: =J2 -> 1520 | K5: =K2 -> 0
C6: ='Balance Selection'!B9 -> 200 | D6: ='Balance Selection'!C23 -> 350 | E6: ='Balance Selection'!D23 -> 1520 | F6: My
C7: ='Balance Selection'!B10 -> 150 | D7: ='Balance Selection'!C24 -> 350 | E7: ='Balance Selection'!D24 -> 385 | F7: Mz | G7: =C3 -> 400 | H7: =C7 -> 150 | J7: =E$6*(1-L7/E$5) -> 1216 | K7: 0 | L7: =E$5*0.2 -> 110
J8: 0 | K8: =E$4*(1-L7/E$5) -> 15200
J10: =E$6*(1-L10/E$5) -> 912 | K10: 0 | L10: =E$5*0.4 -> 220
J11: 0 | K11: =E$4*(1-L10/E$5) -> 11400
J13: =E$6*(1-L13/E$5) -> 608 | K13: 0 | L13: =E$5*0.6 -> 330
J14: 0 | K14: =E$4*(1-L13/E$5) -> 7600
J16: =E$6*(1-L16/E$5) -> 304 | K16: 0 | L16: =E$5*0.8 -> 440
J17: 0 | K17: =E$4*(1-L16/E$5) -> 3800
J19: =E$6*(1-L19/E$5) -> 0 | K19: 0 | L19: =E$5 -> 550
J20: 0 | K20: =E$4*(1-L19/E$5) -> 0
J22: =C6 -> 200 | K22: =C4 -> 2000 | L22: =C5 -> 130 | M22: 0
L23: =E5 -> 550 | M23: 0

Sheet Grafiken % (hidden)
B1: automatische Wahl | C1: requirement | D1: design | E1: limit | G1: Fy | H1: Mz | J1: My | K1: Fz | L1: Mx
B2: ='Balance Selection'!C17 -> Balance 796 | C2: ='Balance Selection'!B5 -> 500 | D2: ='Balance Selection'!C19 -> 1000 | E2: ='Balance Selection'!D19 -> 1000 | F2: Fx | G2: 20 | H2: 0 | J2: 99 | K2: 0 | L2: 0
C3: ='Balance Selection'!B6 -> 400 | D3: ='Balance Selection'!C20 -> 800 | E3: ='Balance Selection'!D20 -> 5500 | F3: Fy | G3: 120 | H3: 100 | J3: 0 | K3: 99
C4: ='Balance Selection'!B7 -> 2000 | D4: ='Balance Selection'!C21 -> 3500 | E4: ='Balance Selection'!D21 -> 19000 | F4: Fz | G4: 120 | H4: 0 | J4: 0 | K4: 0
C5: ='Balance Selection'!B8 -> 130 | D5: ='Balance Selection'!C22 -> 350 | E5: ='Balance Selection'!D22 -> 550 | F5: Mx | G5: =G2 -> 20 | H5: =H2 -> 0 | J5: 99 | K5: =K2 -> 0
C6: ='Balance Selection'!B9 -> 200 | D6: ='Balance Selection'!C23 -> 350 | E6: ='Balance Selection'!D23 -> 1520 | F6: My
C7: ='Balance Selection'!B10 -> 150 | D7: ='Balance Selection'!C24 -> 350 | E7: ='Balance Selection'!D24 -> 385 | F7: Mz | G7: =120-C3/E3*100 -> 112.7272727 | H7: =C7/E7*100 -> 38.96103896 | J7: 80 | K7: 0 | L7: 20
J8: 0 | K8: 80
J10: 60 | K10: 0 | L10: 40
J11: 0 | K11: 60
J13: 40 | K13: 0 | L13: 60
J14: 0 | K14: 40
J16: 20 | K16: 0 | L16: 80
J17: 0 | K17: 20
J19: 0 | K19: 0 | L19: 100
J20: 0 | K20: 0
J22: =C6/E6*100 -> 13.15789474 | K22: =C4/E4*100 -> 10.52631579 | L22: =100-C5/E5*100 -> 76.36363636 | M22: 0
L23: 0 | M23: =L22 -> 76.36363636

Sheet Comments (hidden)
F2: Hinweise
F17: zum Testen der Knöpfe muss der Entwicklermodus ausgeschaltet werden
F18: -> Tabelle 1
F19: Anpassen der Knopfzuordnung: am besten, indem jeder Knopf getestet wird, wobei im Makro 'Tabelle 1' dann an die jweilige Stelle gesprungen wird.

Sheet Rechg (hidden)
B1: Max load | C1: Balance 194 | E1: Balance 199 | G1: Balance 187 | I1: Balance 197 | K1: Balance 198 | M1: Balance 196 | O1: Balance 188 | Q1: Balance 192 | S1: Balance 167 | U1: Balance 179 | W1: Balance 602 | Y1: Balance 300 | AA1: Balance 191 | AC1: Balance 351 | AE1: Balance 798 | AG1: Balance 796 | AI1: Balance 788 | AK1: Balance 776 | AM1: Balance 777 | AO1: Balance 767
C2: design loads [N/Nm] | D2: limit loads [N/Nm] | E2: design loads [N/Nm] | F2: limit loads [N/Nm] | G2: design loads [N/Nm] | H2: limit loads [N/Nm] | I2: design loads [N/Nm] | J2: limit loads [N/Nm] | K2: design loads [N/Nm] | L2: limit loads [N/Nm] | M2: design loads [N/Nm] | N2: limit loads [N/Nm] | O2: design loads [N/Nm] | P2: limit loads [N/Nm] | Q2: design loads [N/Nm] | R2: limit loads [N/Nm] | S2: design loads [N/Nm] | T2: limit loads [N/Nm] | U2: design loads [N/Nm] | V2: limit loads [N/Nm] | W2: design | X2: limit | Y2: design loads [N/Nm] | Z2: limit loads [N/Nm] | AA2: design loads [N/Nm] | AB2: limit loads [N/Nm] | AC2: design loads [N/Nm] | AD2: limit loads [N/Nm] | AE2: design loads [N/Nm] | AF2: limit loads [N/Nm] | AG2: design loads [N/Nm] | AH2: limit loads [N/Nm] | AI2: design loads [N/Nm] | AJ2: limit loads [N/Nm] | AK2: design loads [N/Nm] | AL2: limit loads [N/Nm] | AM2: design loads [N/Nm] | AN2: limit loads [N/Nm] | AO2: design loads [N/Nm] | AP2: limit loads [N/Nm]
A3: x | B3: ='Balance Selection'!B5 -> 500 | C3: 20 | D3: 20 | E3: 40 | F3: 40 | G3: 60 | H3: 60 | I3: 130 | J3: 130 | K3: 120 | L3: 120 | M3: 350 | N3: 350 | O3: 900 | P3: 900 | Q3: 1500 | R3: 1500 | S3: 5000 | T3: 5000 | U3: 6000 | V3: 6000 | W3: 13500 | X3: 13500 | Y3: 12500 | Z3: 12500 | AA3: 7300 | AB3: 7300 | AC3: 100 | AD3: 100 | AE3: 500 | AF3: 500 | AG3: 1000 | AH3: 1000 | AI3: 4000 | AJ3: 4000 | AK3: 1500 | AL3: 1500 | AM3: 3000 | AN3: 3000 | AO3: 13000 | AP3: 13000
A4: y | B4: ='Balance Selection'!B6 -> 400 | C4: 20 | D4: 40 | E4: 80 | F4: 170 | G4: 100 | H4: 350 | I4: 250 | J4: 1000 | K4: 100 | L4: 650 | M4: 250 | N4: 1900 | O4: 1500 | P4: 5000 | Q4: 1000 | R4: 6500 | S4: 3500 | T4: 17000 | U4: 5000 | V4: 25000 | W4: 10200 | X4: 35500 | Y4: 11000 | Z4: 42500 | AA4: 25000 | AB4: 53000 | AC4: 100 | AD4: 200 | AE4: 400 | AF4: 3000 | AG4: 800 | AH4: 5500 | AI4: 600 | AJ4: 10000 | AK4: 5500 | AL4: 11000 | AM4: 4000 | AN4: 16000 | AO4: 10000 | AP4: 32000
A5: z | B5: ='Balance Selection'!B7 -> 2000 | C5: 10 | D5: 85 | E5: 80 | F5: 320 | G5: 200 | H5: 550 | I5: 300 | J5: 4000 | K5: 500 | L5: 1850 | M5: 1200 | N5: 6000 | O5: 4000 | P5: 15000 | Q5: 5000 | R5: 25000 | S5: 12000 | T5: 60000 | U5: 20000 | V5: 62000 | W5: 45000 | X5: 200000 | Y5: 45000 | Z5: 163000 | AA5: 25000 | AB5: 260000 | AC5: 130 | AD5: 400 | AE5: 2000 | AF5: 10000 | AG5: 3500 | AH5: 19000 | AI5: 8000 | AJ5: 25000 | AK5: 5625 | AL5: 22500 | AM5: 8500 | AN5: 50000 | AO5: 30000 | AP5: 88000
A6: mx | B6: ='Balance Selection'!B8 -> 130 | C6: 0.4 | D6: 0.7 | E6: 3 | F6: 7 | G6: 5 | H6: 13 | I6: 90 | J6: 120 | K6: 30 | L6: 60 | M6: 100 | N6: 180 | O6: 300 | P6: 600 | Q6: 500 | R6: 1000 | S6: 2000 | T6: 4500 | U6: 3000 | V6: 6000 | W6: 6000 | X6: 13000 | Y6: 6000 | Z6: 11000 | AA6: 25000 | AB6: 30000 | AC6: 1.1 | AD6: 3.4 | AE6: 130 | AF6: 250 | AG6: 350 | AH6: 550 | AI6: 300 | AJ6: 1000 | AK6: 350 | AL6: 1100 | AM6: 1100 | AN6: 2375 | AO6: 2300 | AP6: 6000
A7: my | B7: ='Balance Selection'!B9 -> 200 | C7: 1 | D7: 3.5 | E7: 5 | F7: 21 | G7: 10 | H7: 40 | I7: 50 | J7: 350 | K7: 40 | L7: 160 | M7: 120 | N7: 500 | O7: 400 | P7: 1700 | Q7: 1000 | R7: 3000 | S7: 2500 | T7: 10000 | U7: 3000 | V7: 14000 | W7: 9000 | X7: 30000 | Y7: 9000 | Z7: 36000 | AA7: 5000 | AB7: 65000 | AC7: 3.8 | AD7: 11 | AE7: 200 | AF7: 700 | AG7: 350 | AH7: 1520 | AI7: 1100 | AJ7: 3000 | AK7: 1300 | AL7: 3000 | AM7: 2500 | AN7: 6850 | AO7: 3800 | AP7: 14000
A8: mz | B8: ='Balance Selection'!B10 -> 150 | C8: 1 | D8: 2 | E8: 5 | F8: 11 | G8: 15 | H8: 20 | I8: 60 | J8: 80 | K8: 40 | L8: 50 | M8: 130 | N8: 150 | O8: 350 | P8: 500 | Q8: 600 | R8: 700 | S8: 2000 | T8: 2500 | U8: 4000 | V8: 5000 | W8: 3500 | X8: 5000 | Y8: 6000 | Z8: 10000 | AA8: 7000 | AB8: 12600 | AC8: 1.35 | AD8: 2.7 | AE8: 150 | AF8: 170 | AG8: 350 | AH8: 385 | AI8: 1000 | AJ8: 1100 | AK8: 650 | AL8: 1300 | AM8: 1300 | AN8: 1750 | AO8: 3100 | AP8: 4500
C9: X/X' | D9: =$B3/D3 -> 25 | E9: X/X' | F9: =$B3/F3 -> 12.5 | G9: X/X' | H9: =$B3/H3 -> 8.333333333 | I9: X/X' | J9: =$B3/J3 -> 3.846153846 | K9: X/X' | L9: =$B3/L3 -> 4.166666667 | M9: X/X' | N9: =$B3/N3 -> 1.428571429 | O9: X/X' | P9: =$B3/P3 -> 0.5555555556 | Q9: X/X' | R9: =$B3/R3 -> 0.3333333333 | S9: X/X' | T9: =$B3/T3 -> 0.1 | U9: X/X' | V9: =$B3/V3 -> 0.08333333333 | W9: X/X' | X9: =$B3/X3 -> 0.03703703704 | Y9: X/X' | Z9: =$B3/Z3 -> 0.04 | AA9: X/X' | AB9: =$B3/AB3 -> 0.06849315068 | AC9: X/X' | AD9: =$B3/AD3 -> 5 | AE9: X/X' | AF9: =$B3/AF3 -> 1 | AG9: X/X' | AH9: =$B3/AH3 -> 0.5 | AI9: X/X' | AJ9: =$B3/AJ3 -> 0.125 | AK9: X/X' | AL9: =$B3/AL3 -> 0.3333333333 | AM9: X/X' | AN9: =$B3/AN3 -> 0.1666666667 | AO9: X/X' | AP9: =$B3/AP3 -> 0.03846153846
C10: Y/Y'+N/N' | D10: =$B4/D4+$B8/D8 -> 85 | E10: Y/Y'+N/N' | F10: =$B4/F4+$B8/F8 -> 15.98930481 | G10: Y/Y'+N/N' | H10: =$B4/H4+$B8/H8 -> 8.642857143 | I10: Y/Y'+N/N' | J10: =$B4/J4+$B8/J8 -> 2.275 | K10: Y/Y'+N/N' | L10: =$B4/L4+$B8/L8 -> 3.615384615 | M10: Y/Y'+N/N' | N10: =$B4/N4+$B8/N8 -> 1.210526316 | O10: Y/Y'+N/N' | P10: =$B4/P4+$B8/P8 -> 0.38 | Q10: Y/Y'+N/N' | R10: =$B4/R4+$B8/R8 -> 0.2758241758 | S10: Y/Y'+N/N' | T10: =$B4/T4+$B8/T8 -> 0.08352941176 | U10: Y/Y'+N/N' | V10: =$B4/V4+$B8/V8 -> 0.046 | W10: Y/Y'+N/N' | X10: =$B4/X4+$B8/X8 -> 0.04126760563 | Y10: Y/Y'+N/N' | Z10: =$B4/Z4+$B8/Z8 -> 0.02441176471 | AA10: Y/Y'+N/N' | AB10: =$B4/AB4+$B8/AB8 -> 0.01945193172 | AC10: Y/Y'+N/N' | AD10: =$B4/AD4+$B8/AD8 -> 57.55555556 | AE10: Y/Y'+N/N' | AF10: =$B4/AF4+$B8/AF8 -> 1.015686275 | AG10: Y/Y'+N/N' | AH10: =$B4/AH4+$B8/AH8 -> 0.4623376623 | AI10: Y/Y'+N/N' | AJ10: =$B4/AJ4+$B8/AJ8 -> 0.1763636364 | AK10: Y/Y'+N/N' | AL10: =$B4/AL4+$B8/AL8 -> 0.1517482517 | AM10: Y/Y'+N/N' | AN10: =$B4/AN4+$B8/AN8 -> 0.1107142857 | AO10: Y/Y'+N/N' | AP10: =$B4/AP4+$B8/AP8 -> 0.04583333333
C11: Z/Z'+L/L'+M/M' | D11: =$B5/D5+$B6/D6+$B7/D7 -> 266.3865546 | E11: Z/Z'+L/L'+M/M' | F11: =$B5/F5+$B6/F6+$B7/F7 -> 34.3452381 | G11: Z/Z'+L/L'+M/M' | H11: =$B5/H5+$B6/H6+$B7/H7 -> 18.63636364 | I11: Z/Z'+L/L'+M/M' | J11: =$B5/J5+$B6/J6+$B7/J7 -> 2.154761905 | K11: Z/Z'+L/L'+M/M' | L11: =$B5/L5+$B6/L6+$B7/L7 -> 4.497747748 | M11: Z/Z'+L/L'+M/M' | N11: =$B5/N5+$B6/N6+$B7/N7 -> 1.455555556 | O11: Z/Z'+L/L'+M/M' | P11: =$B5/P5+$B6/P6+$B7/P7 -> 0.4676470588 | Q11: Z/Z'+L/L'+M/M' | R11: =$B5/R5+$B6/R6+$B7/R7 -> 0.2766666667 | S11: Z/Z'+L/L'+M/M' | T11: =$B5/T5+$B6/T6+$B7/T7 -> 0.08222222222 | U11: Z/Z'+L/L'+M/M' | V11: =$B5/V5+$B6/V6+$B7/V7 -> 0.06821044547 | W11: Z/Z'+L/L'+M/M' | X11: =$B5/X5+$B6/X6+$B7/X7 -> 0.02666666667 | Y11: Z/Z'+L/L'+M/M' | Z11: =$B5/Z5+$B6/Z6+$B7/Z7 -> 0.02964367602 | AA11: Z/Z'+L/L'+M/M' | AB11: =$B5/AB5+$B6/AB6+$B7/AB7 -> 0.0151025641 | AC11: Z/Z'+L/L'+M/M' | AD11: =$B5/AD5+$B6/AD6+$B7/AD7 -> 61.4171123 | AE11: Z/Z'+L/L'+M/M' | AF11: =$B5/AF5+$B6/AF6+$B7/AF7 -> 1.005714286 | AG11: Z/Z'+L/L'+M/M' | AH11: =$B5/AH5+$B6/AH6+$B7/AH7 -> 0.4732057416 | AI11: Z/Z'+L/L'+M/M' | AJ11: =$B5/AJ5+$B6/AJ6+$B7/AJ7 -> 0.2766666667 | AK11: Z/Z'+L/L'+M/M' | AL11: =$B5/AL5+$B6/AL6+$B7/AL7 -> 0.2737373737 | AM11: Z/Z'+L/L'+M/M' | AN11: =$B5/AN5+$B6/AN6+$B7/AN7 -> 0.1239339224 | AO11: Z/Z'+L/L'+M/M' | AP11: =$B5/AP5+$B6/AP6+$B7/AP7 -> 0.05867965368
D12: =MAX(D9:D11) -> 266.3865546 | F12: =MAX(F9:F11) -> 34.3452381 | H12: =MAX(H9:H11) -> 18.63636364 | J12: =MAX(J9:J11) -> 3.846153846 | L12: =MAX(L9:L11) -> 4.497747748 | N12: =MAX(N9:N11) -> 1.455555556 | P12: =MAX(P9:P11) -> 0.5555555556 | R12: =MAX(R9:R11) -> 0.3333333333 | T12: =MAX(T9:T11) -> 0.1 | V12: =MAX(V9:V11) -> 0.08333333333 | X12: =MAX(X9:X11) -> 0.04126760563 | Z12: =MAX(Z9:Z11) -> 0.04 | AB12: =MAX(AB9:AB11) -> 0.06849315068 | AD12: =MAX(AD9:AD11) -> 61.4171123 | AF12: =MAX(AF9:AF11) -> 1.015686275 | AH12: =MAX(AH9:AH11) -> 0.5 | AJ12: =MAX(AJ9:AJ11) -> 0.2766666667 | AL12: =MAX(AL9:AL11) -> 0.3333333333 | AN12: =MAX(AN9:AN11) -> 0.1666666667 | AP12: =MAX(AP9:AP11) -> 0.05867965368
A13: =(MAX(D13:AP13)) -> 0.5555555556 | B13: =MATCH(A13,C13:AP13,0)-1 -> 13 | D13: =IF(D12>1,"",D12) ->  | F13: =IF(F12>1,"",F12) ->  | H13: =IF(H12>1,"",H12) ->  | J13: =IF(J12>1,"",J12) ->  | L13: =IF(L12>1,"",L12) ->  | N13: =IF(N12>1,"",N12) ->  | P13: =IF(P12>1,"",P12) -> 0.5555555556 | R13: =IF(R12>1,"",R12) -> 0.3333333333 | T13: =IF(T12>1,"",T12) -> 0.1 | V13: =IF(V12>1,"",V12) -> 0.08333333333 | X13: =IF(X12>1,"",X12) -> 0.04126760563 | Z13: =IF(Z12>1,"",Z12) -> 0.04 | AB13: =IF(AB12>1,"",AB12) -> 0.06849315068 | AD13: =IF(AD12>1,"",AD12) ->  | AF13: =IF(AF12>1,"",AF12) ->  | AH13: =IF(AH12>1,"",AH12) -> 0.5 | AJ13: =IF(AJ12>1,"",AJ12) -> 0.2766666667 | AL13: =IF(AL12>1,"",AL12) -> 0.3333333333 | AN13: =IF(AN12>1,"",AN12) -> 0.1666666667 | AP13: =IF(AP12>1,"",AP12) -> 0.05867965368
A14: =MATCH("x",'Balance Selection'!A17:A55) -> 31 | B14: =INDEX('Balance Selection'!B17:B55,A14,1) -> Balance 796 | C14: =MATCH(B14,C1:AP1,0) -> 31
A16: Dimensions
A17: Length [mm] | D17: 100 | F17: 150 | H17: 150 | J17: 200 | L17: 200 | N17: 200 | P17: 250 | R17: 250 | T17: 350 | V17: 500 | X17: 280 | Z17: 500 | AB17: 540 | AD17: 120 | AF17: 160 | AH17: 180 | AJ17: 250 | AL17: 300 | AN17: 300 | AP17: 350
A18: Width [mm] | D18: 25 | F18: 60 | H18: 60 | J18: 80 | L18: 80 | N18: 80 | P18: 100 | R18: 100 | T18: 180 | V18: 240 | X18: 180 | Z18: 180 | AB18: 300 | AD18: 48 | AF18: 75 | AH18: 80 | AJ18: 100 | AL18: 130 | AN18: 130 | AP18: 180
A19: Height [mm] | D19: 22 | F19: 40 | H19: 40 | J19: 50 | L19: 50 | N19: 50 | P19: 70 | R19: 80 | T19: 120 | V19: 180 | X19: 120 | Z19: 160 | AB19: 230 | AD19: 40 | AF19: 50 | AH19: 60 | AJ19: 70 | AL19: 90 | AN19: 90 | AP19: 120
A21: Weight [kg] | D21: 0.25 | F21: 1.6 | H21: 1.6 | J21: 3.7 | L21: 3.8 | N21: 3.8 | P21: 9.1 | R21: 11.4 | T21: 40 | V21: 112.4 | X21: 38.5 | Z21: 83.5 | AB21: 179 | AD21: 0.4 | AF21: 3.8 | AH21: 5 | AJ21: 10.3 | AL21: 21 | AN21: 21.5 | AP21: 50
A23: Deformation
A24: δα/δMy [deg/Nm] | D24: 4.9*10-2 | F24: 5.2*10-3 | H24: 5.2*10-3 | J24: 4.1*10-4 | L24: 8.5*10-4 | N24: 3.3*10-4 | P24: 1.2*10-4 | R24: 1.3*10-4 | T24: 1.2*10-5 | V24: 1.1*10-6 | X24: 5.3*10-6 | Z24: 9.9*10-6 | AB24: 3.4*10-6 | AD24: 3.6*10-3 | AF24: 1.2*10-4 | AH24: 8.0*10-5 | AJ24: 2.8*10-5 | AL24: 1.2*10-5 | AN24: 1.2*10-5 | AP24: 6.5*10-6
A25: δβ/δMz [deg/Nm] | D25: 9.6*10-2 | F25: 1.2*10-2 | H25: 3.0*10-3 | J25: 1.1*10-3 | L25: 2.4*10-3 | N25: 6.7*10-4 | P25: 2.1*10-4 | R25: 1.7*10-4 | T25: 4.4*10-5 | V25: 1.6*10-5 | X25: 4.6*10-6 | Z25: 1.8*10-5 | AB25: 3.1*10-5 | AD25: 7.0*10-3 | AF25: 3.8*10-4 | AH25: 2.0*10-4 | AJ25: 3.4*10-5 | AL25: 3.0*10-5 | AN25: 3.0*10-5 | AP25: 1.5*10-5
A26: δφ/δMx [deg/Nm] | D26: 1.0*10-0 | F26: 3.6*10-2 | H26: 1.5*10-3 | J26: 2.5*10-3 | L26: 6.5*10-3 | N26: 3.0*10-3 | P26: 6.6*10-4 | R26: 4.1*10-4 | T26: 5.1*10-5 | V26: 1.0*10-5 | X26: 1.9*10-5 | Z26: 3.3*10-5 | AB26: 9.5*10-6 | AD26: 3.2*10-2 | AF26: 8.3*10-4 | AH26: 4.0*10-4 | AJ26: 1.4*10-4 | AL26: 9.4*10-5 | AN26: 9.4*10-5 | AP26: 3.6*10-5
